fUST/lending_fUST_20260111
["ID","MTS","AMOUNT","RATE_DAILY","PERIOD"]
[401237117,1768063839798,-603.5716848,0.0001257,2]
[401237118,1768063839807,-500.0,0.0001257,2]
[401237119,1768063839816,-500.0,0.0001257,2]
[401237120,1768063839826,-500.0,0.0001257,2]
[401237121,1768063839835,-500.0,0.0001257,2]
[401237122,1768063839844,-500.0,0.0001257,2]
[401237123,1768063839853,-500.0,0.0001257,2]
[401237124,1768063839863,-500.0,0.0001257,2]
[401237125,1768063839872,-500.0,0.0001257,2]
[401237126,1768063839883,-500.0,0.0001257,2]
[401237127,1768063839893,-500.0,0.0001257,2]
[401237128,1768063839903,-500.0,0.0001257,2]
[401237129,1768063839916,-500.0,0.0001257,2]
[401237130,1768063839927,-500.0,0.0001257,2]
[401237131,1768063839937,-500.0,0.0001257,2]
[401237132,1768063839946,-500.0,0.0001257,2]
[401237133,1768063839958,-500.0,0.0001257,2]
[401237134,1768063839968,-500.0,0.0001257,2]
[401237135,1768063839978,-500.0,0.0001257,2]
[401237136,1768063839990,-500.0,0.0001257,2]
[401237137,1768063840000,-500.0,0.0001257,2]
[401237138,1768063840010,-500.0,0.0001257,2]
[401237139,1768063840021,-500.0,0.0001257,2]
[401237140,1768063840031,-500.0,0.0001257,2]
[401237141,1768063840040,-500.0,0.0001257,2]
[401237142,1768063840049,-500.0,0.0001257,2]
[401237143,1768063840058,-500.0,0.0001257,2]
[401237144,1768063840068,-500.0,0.0001257,2]
[401237145,1768063840077,-500.0,0.0001257,2]
[401237146,1768063840086,-500.0,0.0001257,2]
[401237147,1768063840096,-664.08075128,0.0001257,2]
[401237148,1768063840106,-500.0,0.0001257,2]
[401237149,1768063840115,-664.08075128,0.0001257,2]
[401237150,1768063840125,-500.0,0.0001257,2]
[401237151,1768063840134,-500.0,0.0001257,2]
[401237152,1768063840144,-664.08075128,0.0001257,2]
[401237153,1768063840155,-500.0,0.0001257,2]
[401237154,1768063840165,-664.08075128,0.0001257,2]
[401237155,1768063840175,-500.0,0.0001257,2]
[401237156,1768063840184,-664.08075128,0.0001257,2]
[401237157,1768063840194,-500.0,0.0001257,2]
[401237158,1768063840203,-500.0,0.0001257,2]
[401237159,1768063840212,-664.08075128,0.0001257,2]
[401237160,1768063840223,-500.0,0.0001257,2]
[401237161,1768063840233,-664.08075128,0.0001257,2]
[401237162,1768063840242,-500.0,0.0001257,2]
[401237163,1768063840251,-500.0,0.0001257,2]
[401237164,1768063840262,-664.08075128,0.0001257,2]
[401237165,1768063840272,-664.08075128,0.0001257,2]
[401237167,1768063840281,-664.08075128,0.0001257,2]
[401237169,1768063840290,-500.0,0.0001257,2]
[401237170,1768063840299,-664.08075128,0.0001257,2]
[401237171,1768063840309,-500.0,0.0001257,2]
[401237172,1768063840318,-664.08075128,0.0001257,2]
[401237173,1768063840327,-250.17019598,0.0001257,2]
[401237174,1768063840337,-664.08075128,0.0001257,2]
[401237175,1768063840346,-664.08075128,0.0001257,2]
[401237176,1768063840355,-500.0,0.0001257,2]
[401237177,1768063840365,-664.08075128,0.0001257,2]
[401237178,1768063840375,-500.0,0.0001257,2]
[401237180,1768063840384,-500.0,0.0001257,2]
[401237182,1768063840393,-664.08075128,0.0001257,2]
[401237183,1768063840403,-500.0,0.0001257,2]
[401237184,1768063840412,-664.08075128,0.0001257,2]
[401237185,1768063840422,-500.0,0.0001257,2]
[401237186,1768063840433,-500.0,0.0001257,2]
[401237187,1768063840443,-664.08075128,0.0001257,2]
[401237188,1768063840452,-500.0,0.0001257,2]
[401237189,1768063840462,-664.08075128,0.0001257,2]
[401237190,1768063840471,-500.0,0.0001257,2]
[401237191,1768063840481,-664.08075128,0.0001257,2]
[401237193,1768063840491,-500.0,0.0001257,2]
[401237195,1768063840502,-664.08075128,0.0001257,2]
[401237196,1768063840512,-664.08075128,0.0001257,2]
[401237197,1768063840523,-500.0,0.0001257,2]
[401237198,1768063840533,-664.08075128,0.0001257,2]
[401237199,1768063840545,-664.08075128,0.0001257,2]
[401237200,1768063840555,-500.0,0.0001257,2]
[401237201,1768063840565,-664.08075128,0.0001257,2]
[401237202,1768063840575,-664.08075128,0.0001257,2]
[401237203,1768063840586,-500.0,0.0001257,2]
[401237204,1768063840596,-664.08075128,0.0001257,2]
[401237205,1768063840606,-664.08075128,0.0001257,2]
[401237206,1768063840615,-500.0,0.0001257,2]
[401237207,1768063840625,-664.08075128,0.0001257,2]
[401237208,1768063840634,-664.08075128,0.0001257,2]
[401237209,1768063840643,-189.06850942,0.0001257,2]
[401237210,1768063840652,-664.08075128,0.0001257,2]
[401237211,1768063840662,-664.08075128,0.0001257,2]
[401237212,1768063840672,-500.0,0.0001257,2]
[401237213,1768063840681,-664.08075128,0.0001257,2]
[401237214,1768063840691,-664.08075128,0.0001257,2]
[401237215,1768063840700,-664.08075128,0.0001257,2]
[401237216,1768063840709,-664.08075128,0.0001257,2]
[401237217,1768063840719,-664.08075128,0.0001257,2]
[401237218,1768063840728,-664.08075128,0.0001257,2]
[401237219,1768063840738,-664.08075128,0.0001257,2]
[401237220,1768063840747,-664.08075128,0.0001257,2]
[401237221,1768063840756,-664.08075128,0.0001257,2]
[401237222,1768063840766,-664.08075128,0.0001257,2]
[401237223,1768063840776,-664.08075128,0.0001257,2]
[401237224,1768063840786,-664.08075128,0.0001257,2]
[401237225,1768063840795,-664.08075128,0.0001257,2]
[401237226,1768063840805,-664.08075128,0.0001257,2]
[401237227,1768063840814,-664.08075128,0.0001257,2]
[401237228,1768063840823,-664.08075128,0.0001257,2]
[401237229,1768063840833,-664.08075128,0.0001257,2]
[401237230,1768063840844,-1760.54760443,0.0001257,2]
[401237231,1768063840854,-1760.54760443,0.0001257,2]
[401237232,1768063840864,-500.0,0.00012572,2]
[401237233,1768063840874,-329.12,0.00012844,2]
[401237234,1768063840883,-500.0,0.00012846,2]
[401237235,1768063840892,-720.0,0.00012959,2]
[401237236,1768063840903,-300.44911684,0.00012983,2]
[401237237,1768063840913,-7142.16034431,0.00013,2]
[401237238,1768063840921,-329.12,0.00013118,2]
[401237239,1768063840932,-319.54093411,0.0001312,2]
[401237240,1768063840943,-151.0,0.000132,2]
[401237241,1768063840953,-177.0,0.00013325,2]
[401237242,1768063840962,-329.12,0.00013392,2]
[401237243,1768063840971,-585.10841417,0.00013412,2]
[401237244,1768063840980,-329.14267094,0.00013666,2]
[401237245,1768063840990,-500.0,0.00013699,2]
[401237246,1768063841000,-500.0,0.00013699,2]
[401237247,1768063841009,-500.0,0.00013836,2]
[401237248,1768063841019,-500.0,0.00013836,2]
[401237249,1768063841029,-500.0,0.00013973,2]
[401237250,1768063841039,-200.0,0.00013973,2]
[401237251,1768063841049,-500.0,0.00013973,2]
[401237252,1768063841058,-200.0,0.00013973,2]
[401237253,1768063841068,-200.88241622,0.00013973,2]
[401237254,1768063841078,-151.0,0.00014,2]
[401237255,1768063841087,-500.0,0.0001411,2]
[401237256,1768063841097,-500.0,0.0001411,2]
[401237257,1768063841106,-500.0,0.00014247,2]
[401237258,1768063841115,-500.0,0.00014247,2]
[401237259,1768063841125,-864.0,0.00014255,2]
[401237260,1768063841134,-300.0,0.00014384,2]
[401237261,1768063841144,-500.0,0.00014384,2]
[401237262,1768063841154,-250.0,0.00014384,2]
[401237263,1768063841163,-250.0,0.00014384,2]
[401237264,1768063841173,-250.0,0.00014384,2]
[401237265,1768063841183,-250.0,0.00014384,2]
[401237266,1768063841192,-250.0,0.0001448,2]
[401237267,1768063841202,-500.0,0.00014521,2]
[401237268,1768063841211,-1064.8859712,0.00014653,2]
[401237269,1768063841220,-500.0,0.00014658,2]
[401237270,1768063841230,-500.0,0.00014795,2]
[401237271,1768063841240,-151.0,0.000148,2]
[401237272,1768063841250,-500.0,0.00014932,2]
[401237273,1768063841259,-500.0,0.00015069,2]
[401237274,1768063841269,-489.65888898,0.00015206,2]
[401237275,1768063841279,-204.0,0.00015325,2]
[401237276,1768063841289,-151.0,0.000155,2]
[401237277,1768063841299,-1000.0,0.00015681,2]
[401237278,1768063841309,-151.0,0.000163,2]
[401237279,1768063841319,-2338.09322302,0.00016722,2]
[401237280,1768063841329,-151.0,0.000171,2]
[401237281,1768063841338,-2717.39151148,0.00017149,2]
[401237282,1768063841348,-1000.0,0.00017249,2]
[401237283,1768063841358,-244.0,0.00017249,2]
[401237284,1768063841367,-231.0,0.00017325,2]
[401237285,1768063841377,-151.0,0.000178,2]
[401237286,1768063841387,-2717.39151148,0.00017887,2]
[401237287,1768063841396,-151.0,0.000186,2]
[401237288,1768063841406,-2717.39151148,0.00018625,2]
[401237289,1768063841415,-303.10001603,0.000189,2]
[401237290,1768063841424,-1000.0,0.00018973,2]
[401237291,1768063841433,-492.0,0.00018973,2]
[401237292,1768063841443,-198.62096574,0.00019089,2]
[401237293,1768063841452,-258.0,0.00019325,2]
[401237294,1768063841461,-2717.39151148,0.00019362,2]
[401237295,1768063841470,-151.0,0.000194,2]
[401237296,1768063841479,-1503.13,0.00020049,2]
[401237297,1768063841489,-151.0,0.000201,3]
[401237298,1768063841498,-151.0,0.000201,4]
[401237299,1768063841507,-2717.39151148,0.000201,2]
[401237300,1768063841516,-159.33,0.000202,2]
[401237301,1768063841526,-6834.71,0.000202,2]
[401237302,1768063841535,-1000.0,0.00020871,2]
[401237303,1768063841544,-791.0,0.00020871,2]
[401237304,1768063841554,-9999.3338094,0.0002119,2]
[401237305,1768063841563,-285.0,0.00021325,2]
[401237306,1768063841572,-1000.0,0.00022958,10]
[401237307,1768063841582,-1000.0,0.00022958,10]
[401237308,1768063841591,-312.0,0.00023325,2]
[401237309,1768063841600,-500.0,0.00024151,2]
[401237310,1768063841610,-218.0,0.00024795,14]
[401237311,1768063841618,-1000.0,0.00025254,10]
[401237312,1768063841628,-1000.0,0.00025254,10]
[401237313,1768063841638,-579.0,0.00025254,10]
[401237314,1768063841647,-339.0,0.00025325,2]
[401237315,1768063841656,-250.0,0.00025343,2]
[401237316,1768063841665,-366.0,0.00027325,2]
[401237317,1768063841675,-1000.0,0.00027779,30]
[401237318,1768063841685,-1000.0,0.00027779,30]
[401237319,1768063841694,-1000.0,0.00027779,30]
[401237320,1768063841703,-169.0,0.00028082,27]
[401237321,1768063841713,-393.0,0.00029325,2]
[401237322,1768063841722,-352.89,0.00030137,2]
[401237323,1768063841732,-516.35781364,0.00030285,7]
[401237324,1768063841741,-154.78,0.00030311,2]
[401237325,1768063841751,-1000.0,0.00030557,30]
[401237326,1768063841760,-1000.0,0.00030557,30]
[401237327,1768063841769,-1000.0,0.00030557,30]
[401237328,1768063841780,-715.0,0.00030557,30]
[401237329,1768063841789,-420.0,0.00031325,2]
[401237330,1768063841798,-155.0,0.0003137,46]
[401237331,1768063841807,-174.13,0.00031394,2]
[401237332,1768063841816,-447.0,0.00033325,120]
[401237333,1768063841825,-1000.0,0.00033613,30]
[401237334,1768063841835,-1000.0,0.00033613,30]
[401237335,1768063841844,-1000.0,0.00033613,30]
[401237336,1768063841853,-210.0,0.00033699,5]
[401237337,1768063841863,-763.0,0.00034073,30]
[401237338,1768063841872,-324.5,0.00034073,30]
[401237339,1768063841882,-5058.79910613,0.00034263,44]
[401237340,1768063841891,-270.0,0.00034521,5]
[401237341,1768063841900,-474.0,0.00035325,120]
[401237342,1768063841910,-330.0,0.00035342,5]
[401237343,1768063841921,-234.01800001,0.00035542,2]
[401237344,1768063841930,-532.54,0.00035616,30]
[401237345,1768063841939,-200.0,0.00035671,120]
[401237346,1768063841948,-247601.95839655,0.00035937,4]
[401237347,1768063841958,-500.0,0.00036164,30]
[401237348,1768063841967,-190.020001,0.00036164,5]
[401237349,1768063841976,-161.0,0.00036301,87]
[401237350,1768063841987,-634.76131851,0.00036323,5]
[401237351,1768063841996,-258.37953721,0.0003659,14]
[401237352,1768063842005,-453.20238294,0.00036634,2]
[401237353,1768063842014,-453.20238294,0.00036656,2]
[401237354,1768063842023,-453.20238294,0.00036679,2]
[401237355,1768063842033,-453.20238294,0.00036701,2]
[401237356,1768063842042,-2479.36,0.00036712,30]
[401237357,1768063842051,-2479.36,0.00036712,30]
[401237358,1768063842061,-2479.36,0.00036712,30]
[401237359,1768063842160,-2479.36,0.00036712,30]
[401237360,1768063842183,-2479.36,0.00036712,30]
[401237361,1768063842193,-2479.36,0.00036712,30]
[401237362,1768063842202,-2479.36,0.00036712,30]
[401237363,1768063842212,-2479.36,0.00036712,30]
[401237364,1768063842222,-2479.36,0.00036712,30]
[401237365,1768063842231,-2479.36,0.00036712,30]
[401237366,1768063842241,-2479.36,0.00036712,30]
[401237367,1768063842251,-2479.36,0.00036712,30]
[401237368,1768063842260,-2479.36,0.00036712,30]
[401237369,1768063842270,-2479.36,0.00036712,30]
[401237370,1768063842281,-2479.36,0.00036712,30]
[401237371,1768063842291,-2479.36,0.00036712,30]
[401237372,1768063842301,-2479.36,0.00036712,30]
[401237373,1768063842310,-2479.36,0.00036712,30]
[401237374,1768063842320,-2479.36,0.00036712,30]
[401237375,1768063842329,-2479.36,0.00036712,30]
[401237376,1768063842339,-2479.36,0.00036712,30]
[401237377,1768063842348,-2479.36,0.00036712,30]
[401237378,1768063842357,-2479.36,0.00036712,30]
[401237379,1768063842366,-2479.42,0.00036712,30]
[401237380,1768063842376,-16189.62,0.00036712,30]
[401237381,1768063842386,-16189.62,0.00036712,30]
[401237382,1768063842395,-16189.62,0.00036712,30]
[401237383,1768063842404,-16189.62,0.00036712,30]
[401237384,1768063842414,-16189.62,0.00036712,30]
[401237385,1768063842425,-16189.62,0.00036712,30]
[401237386,1768063842434,-16189.62,0.00036712,30]
[401237387,1768063842444,-16189.62,0.00036712,30]
[401237388,1768063842455,-16189.62,0.00036712,30]
[401237389,1768063842465,-16189.62,0.00036712,30]
[401237390,1768063842474,-16189.62,0.00036712,30]
[401237391,1768063842484,-16189.62,0.00036712,30]
[401237392,1768063842493,-16189.62,0.00036712,30]
[401237393,1768063842502,-16189.62,0.00036712,30]
[401237394,1768063842511,-16189.62,0.00036712,30]
[401237395,1768063842520,-16189.62,0.00036712,30]
[401237396,1768063842530,-16189.62,0.00036712,30]
[401237397,1768063842539,-16189.62,0.00036712,30]
[401237398,1768063842548,-16189.62,0.00036712,30]
[401237399,1768063842558,-16189.62,0.00036712,30]
[401237400,1768063842567,-16189.62,0.00036712,30]
[401237401,1768063842576,-16189.62,0.00036712,30]
[401237402,1768063842586,-16189.62,0.00036712,30]
[401237403,1768063842596,-16189.70100427,0.00036712,30]
[401237404,1768063842606,-4887.27,0.00036712,30]
[401237405,1768063842615,-4887.27,0.00036712,30]
[401237406,1768063842625,-4887.27,0.00036712,30]
[401237407,1768063842634,-4887.27,0.00036712,30]
[401237408,1768063842644,-4887.27,0.00036712,30]
[401237409,1768063842653,-4887.27,0.00036712,30]
[401237410,1768063842662,-4887.27,0.00036712,30]
[401237411,1768063842671,-4887.27,0.00036712,30]
[401237412,1768063842681,-4887.27,0.00036712,30]
[401237413,1768063842690,-4887.27,0.00036712,30]
[401237414,1768063842699,-4887.27,0.00036712,30]
[401237415,1768063842709,-4887.27,0.00036712,30]
[401237416,1768063842719,-4887.27,0.00036712,30]
[401237417,1768063842728,-4887.27,0.00036712,30]
[401237418,1768063842738,-4887.27,0.00036712,30]
[401237419,1768063842748,-4887.27,0.00036712,30]
[401237420,1768063842759,-4887.27,0.00036712,30]
[401237421,1768063842768,-4887.27,0.00036712,30]
[401237422,1768063842777,-4887.27,0.00036712,30]
[401237423,1768063842786,-4887.27,0.00036712,30]
[401237424,1768063842796,-4887.27,0.00036712,30]
[401237425,1768063842805,-4887.27,0.00036712,30]
[401237426,1768063842815,-4887.27,0.00036712,30]
[401237427,1768063842825,-4887.3,0.00036712,30]
[401237428,1768063842835,-2195.79,0.00036712,30]
[401237429,1768063842845,-2195.79,0.00036712,30]
[401237430,1768063842855,-2195.79,0.00036712,30]
[401237431,1768063842865,-2195.79,0.00036712,30]
[401237432,1768063842875,-2195.79,0.00036712,30]
[401237433,1768063842885,-2195.79,0.00036712,30]
[401237434,1768063842894,-2195.79,0.00036712,30]
[401237435,1768063842905,-2195.79,0.00036712,30]
[401237436,1768063842918,-2195.79,0.00036712,30]
[401237437,1768063842928,-2195.79,0.00036712,30]
[401237438,1768063842938,-2195.79,0.00036712,30]
[401237439,1768063842947,-2195.79,0.00036712,30]
[401237440,1768063842956,-2195.79,0.00036712,30]
[401237441,1768063842966,-2195.79,0.00036712,30]
[401237443,1768063842975,-2195.79,0.00036712,30]
[401237446,1768063842985,-2195.79,0.00036712,30]
[401237447,1768063842994,-2195.79,0.00036712,30]
[401237449,1768063843005,-2195.79,0.00036712,30]
[401237450,1768063843015,-2195.79,0.00036712,30]
[401237451,1768063843024,-2195.79,0.00036712,30]
[401237452,1768063843034,-2195.79,0.00036712,30]
[401237453,1768063843044,-2195.79,0.00036712,30]
[401237454,1768063843054,-2195.79,0.00036712,30]
[401237455,1768063843063,-2195.88,0.00036712,30]
[401237456,1768063843072,-2192.87,0.00036712,30]
[401237457,1768063843082,-2192.87,0.00036712,30]
[401237458,1768063843091,-2192.87,0.00036712,30]
[401237459,1768063843100,-2192.87,0.00036712,30]
[401237460,1768063843109,-2192.87,0.00036712,30]
[401237461,1768063843119,-2192.87,0.00036712,30]
[401237462,1768063843128,-2192.87,0.00036712,30]
[401237463,1768063843138,-2192.87,0.00036712,30]
[401237464,1768063843148,-2192.87,0.00036712,30]
[401237465,1768063843157,-2192.87,0.00036712,30]
[401237466,1768063843167,-2192.87,0.00036712,30]
[401237467,1768063843175,-2192.87,0.00036712,30]
[401237468,1768063843185,-2192.87,0.00036712,30]
[401237469,1768063843195,-2192.87,0.00036712,30]
[401237470,1768063843204,-2192.87,0.00036712,30]
[401237471,1768063843214,-2192.87,0.00036712,30]
[401237472,1768063843224,-2192.87,0.00036712,30]
[401237473,1768063843234,-2192.87,0.00036712,30]
[401237474,1768063843244,-2192.87,0.00036712,30]
[401237475,1768063843253,-2192.87,0.00036712,30]
[401237476,1768063843263,-2192.87,0.00036712,30]
[401237477,1768063843272,-2192.87,0.00036712,30]
[401237478,1768063843282,-241.15003758,0.00036712,120]
[401237479,1768063843292,-2192.87,0.00036712,30]
[401237480,1768063843302,-2192.89,0.00036712,30]
[401237481,1768063843311,-26257.46,0.00036712,30]
[401237482,1768063843321,-26257.46,0.00036712,30]
[401237483,1768063843331,-26257.46,0.00036712,30]
[401237484,1768063843340,-26257.46,0.00036712,30]
[401237485,1768063843350,-26257.46,0.00036712,30]
[401237486,1768063843360,-26257.46,0.00036712,30]
[401237487,1768063843370,-26257.46,0.00036712,30]
[401237488,1768063843379,-26257.46,0.00036712,30]
[401237489,1768063843389,-26257.46,0.00036712,30]
[401237490,1768063843399,-26257.46,0.00036712,30]
[401237491,1768063843408,-26257.46,0.00036712,30]
[401237492,1768063843417,-26257.46,0.00036712,30]
[401237493,1768063843426,-26257.46,0.00036712,30]
[401237494,1768063843436,-26257.46,0.00036712,30]
[401237495,1768063843445,-26257.46,0.00036712,30]
[401237496,1768063843455,-26257.46,0.00036712,30]
[401237497,1768063843464,-26257.46,0.00036712,30]
[401237498,1768063843474,-26257.46,0.00036712,30]
[401237499,1768063843483,-26257.46,0.00036712,30]
[401237500,1768063843492,-26257.46,0.00036712,30]
[401237501,1768063843502,-26257.46,0.00036712,30]
[401237502,1768063843511,-26257.46,0.00036712,30]
[401237503,1768063843521,-26257.46,0.00036712,30]
[401237504,1768063843531,-26257.54452659,0.00036712,30]
[401237505,1768063843540,-5048.48,0.00036712,30]
[401237506,1768063843551,-5048.48,0.00036712,30]
[401237507,1768063843560,-5048.48,0.00036712,30]
[401237508,1768063843569,-5048.48,0.00036712,30]
[401237509,1768063843579,-5048.48,0.00036712,30]
[401237510,1768063843588,-5048.48,0.00036712,30]
[401237511,1768063843598,-5048.48,0.00036712,30]
[401237512,1768063843607,-5048.48,0.00036712,30]
[401237513,1768063843617,-5048.48,0.00036712,30]
[401237514,1768063843626,-5048.48,0.00036712,30]
[401237515,1768063843636,-5048.48,0.00036712,30]
[401237516,1768063843644,-5048.48,0.00036712,30]
[401237517,1768063843653,-5048.48,0.00036712,30]
[401237518,1768063843662,-5048.48,0.00036712,30]
[401237519,1768063843672,-5048.48,0.00036712,30]
[401237520,1768063843681,-5048.48,0.00036712,30]
[401237521,1768063843690,-5048.48,0.00036712,30]
[401237522,1768063843700,-5048.48,0.00036712,30]
[401237523,1768063843709,-5048.48,0.00036712,30]
[401237524,1768063843719,-5048.48,0.00036712,30]
[401237525,1768063843728,-5048.48,0.00036712,30]
[401237526,1768063843739,-5048.48,0.00036712,30]
[401237527,1768063843750,-5048.48,0.00036712,30]
[401237528,1768063843760,-5048.65,0.00036712,30]
[401237529,1768063843770,-500.02,0.00036712,30]
[401237530,1768063843780,-453.20238294,0.00036723,2]
[401237531,1768063843790,-540.83,0.00036744,46]
[401237532,1768063843799,-453.20238294,0.00036745,2]
[401237533,1768063843809,-453.20238294,0.00036768,2]
[401237534,1768063843818,-453.20238294,0.0003679,2]
[401237535,1768063843827,-159.33,0.000368,30]
[401237536,1768063843838,-453.20238294,0.00036812,2]
[401237537,1768063843847,-800.0,0.00036888,7]
[401237538,1768063843860,-500.0,0.00036893,13]
[401237539,1768063843869,-250.0,0.00036899,30]
[401237540,1768063843878,-250.0,0.00036899,30]
[401237541,1768063843887,-151.0,0.00036899,30]
[401237542,1768063843896,-6834.71,0.000369,14]
[401237543,1768063843905,-377.1655679,0.00036904,30]
[401237544,1768063843917,-377.1655679,0.00036904,30]
[401237545,1768063843927,-376.6134449,0.00036904,30]
[401237546,1768063843938,-151.0,0.00036912,31]
[401237547,1768063843947,-162.204706,0.00036912,31]
[401237548,1768063843958,-151.0,0.00036912,28]
[401237549,1768063843967,-151.0,0.00036912,28]
[401237550,1768063843977,-151.0,0.00036912,28]
[401237551,1768063843986,-151.0,0.00036912,28]
[401237552,1768063843995,-151.0,0.00036912,28]
[401237553,1768063844005,-151.0,0.00036912,28]
[401237554,1768063844014,-241.887947,0.00036912,28]
[401237555,1768063844026,-315.18853,0.00036912,31]
[401237556,1768063844035,-315.18853,0.00036912,31]
[401237557,1768063844045,-315.18853,0.00036912,31]
[401237558,1768063844056,-315.18853,0.00036912,31]
[401237559,1768063844065,-315.18853,0.00036912,31]
[401237560,1768063844074,-315.18853,0.00036912,31]
[401237561,1768063844083,-315.18853,0.00036912,31]
[401237562,1768063844093,-315.18853,0.00036912,31]
[401237563,1768063844102,-315.18853,0.00036912,31]
[401237564,1768063844111,-315.18853,0.00036912,31]
[401237565,1768063844121,-315.18853,0.00036912,31]
[401237566,1768063844131,-315.18853,0.00036912,31]
[401237567,1768063844140,-315.18853,0.00036912,31]
[401237568,1768063844151,-315.18853,0.00036912,31]
[401237569,1768063844160,-315.18853,0.00036912,31]
[401237570,1768063844169,-315.18853,0.00036912,31]
[401237571,1768063844178,-315.18853,0.00036912,31]
[401237572,1768063844187,-315.18853,0.00036912,31]
[401237573,1768063844197,-315.18853,0.00036912,31]
[401237574,1768063844206,-315.188524,0.00036912,31]
[401237575,1768063844215,-151.0,0.00036912,31]
[401237576,1768063844225,-151.0,0.00036912,31]
[401237577,1768063844234,-151.0,0.00036912,31]
[401237578,1768063844244,-151.0,0.00036912,31]
[401237579,1768063844254,-151.0,0.00036912,31]
[401237580,1768063844264,-240.800018,0.00036912,31]
[401237581,1768063844274,-151.0,0.00036912,31]
[401237582,1768063844285,-151.0,0.00036912,31]
[401237583,1768063844295,-155.463633,0.00036912,31]
[401237585,1768063844304,-479.331389,0.00036912,31]
[401237586,1768063844314,-479.331389,0.00036912,31]
[401237587,1768063844323,-479.331389,0.00036912,31]
[401237588,1768063844333,-479.331389,0.00036912,31]
[401237589,1768063844343,-479.331389,0.00036912,31]
[401237590,1768063844352,-479.331389,0.00036912,31]
[401237591,1768063844362,-479.331389,0.00036912,31]
[401237592,1768063844371,-479.331389,0.00036912,31]
[401237593,1768063844381,-479.331389,0.00036912,31]
[401237594,1768063844390,-479.331389,0.00036912,31]
[401237595,1768063844399,-479.331389,0.00036912,31]
[401237596,1768063844410,-479.331389,0.00036912,31]
[401237597,1768063844419,-479.331389,0.00036912,31]
[401237598,1768063844429,-479.331389,0.00036912,31]
[401237599,1768063844439,-479.331389,0.00036912,31]
[401237600,1768063844448,-479.331389,0.00036912,31]
[401237601,1768063844457,-479.331389,0.00036912,31]
[401237602,1768063844466,-479.331389,0.00036912,31]
[401237603,1768063844475,-479.331389,0.00036912,31]
[401237604,1768063844485,-479.33138,0.00036912,31]
[401237605,1768063844494,-245.445707,0.00036912,31]
[401237606,1768063844503,-245.445707,0.00036912,31]
[401237607,1768063844512,-245.445707,0.00036912,31]
[401237608,1768063844521,-245.445707,0.00036912,31]
[401237609,1768063844530,-245.445707,0.00036912,31]
[401237610,1768063844539,-245.445707,0.00036912,31]
[401237611,1768063844548,-245.445707,0.00036912,31]
[401237612,1768063844557,-245.445707,0.00036912,31]
[401237613,1768063844566,-245.445707,0.00036912,31]
[401237614,1768063844575,-245.445707,0.00036912,31]
[401237615,1768063844584,-245.445707,0.00036912,31]
[401237616,1768063844594,-245.445707,0.00036912,31]
[401237617,1768063844603,-245.445707,0.00036912,31]
[401237618,1768063844612,-245.445707,0.00036912,31]
[401237619,1768063844622,-245.445707,0.00036912,31]
[401237620,1768063844631,-245.445707,0.00036912,31]
[401237621,1768063844641,-245.445707,0.00036912,31]
[401237622,1768063844650,-245.445707,0.00036912,31]
[401237623,1768063844659,-245.445707,0.00036912,31]
[401237624,1768063844668,-245.445699,0.00036912,31]
[401237625,1768063844677,-3534524.41128609,0.00036918,20]
[401237626,1768063844746,-330.79864556,0.00036918,20]
[401237627,1768063844757,-8133.70840359,0.00036918,20]